fUSD/lending_fUSD_20250410
["ID","MTS","AMOUNT","RATE_DAILY","PERIOD"]
[357662460,1744294233047,-501.48116461,0.0004,4]
[357662462,1744294233057,-599.12016594,0.0004,3]
[357662464,1744294233067,-550.0,0.0004,2]
[357662466,1744294233077,-282.8,0.00040023,2]
[357662468,1744294233087,-154.13133635,0.00040198,120]
[357662470,1744294233097,-305.1,0.00040371,5]
[357662472,1744294233108,-305.45,0.00040371,5]
[357662474,1744294233119,-304.83,0.00040371,5]
[357662476,1744294233131,-301.56,0.00040393,5]
[357662478,1744294233141,-300.0,0.000406,14]
[357662480,1744294233152,-363.67393797,0.00040609,2]
[357662482,1744294233163,-700.0,0.000407,14]
[357662484,1744294233174,-646.85,0.00040795,8]
[357662486,1744294233183,-1100.0,0.000408,14]
[357662488,1744294233195,-329.28203214,0.00040808,2]
[357662490,1744294233204,-1500.0,0.000409,14]
[357662492,1744294233214,-329.28203215,0.00040939,2]
[357662494,1744294233224,-814.54294464,0.00040994,15]
[357662496,1744294233234,-166.77332745,0.00040995,15]
[357662498,1744294233243,-201.19030446,0.00040995,28]
[357662500,1744294233253,-1861.92298182,0.00040995,16]
[357662502,1744294233262,-185.0,0.00041,45]
[357662504,1744294233271,-184.39,0.00041,120]
[357662506,1744294233281,-2000.0,0.00041,14]
[357662508,1744294233291,-159.0,0.00041,14]
[357662510,1744294233302,-1293.6,0.00041069,9]
[357662511,1744294233313,-151.61,0.00041075,2]
[357662513,1744294233324,-500.0,0.00041084,2]
[357662515,1744294233334,-500.0,0.00041084,2]
[357662517,1744294233344,-500.0,0.00041084,2]
[357662519,1744294233354,-500.0,0.00041084,2]
[357662521,1744294233367,-343.20174138,0.00041084,15]
[357662523,1744294233378,-326.00771429,0.00041084,31]
[357662525,1744294233388,-738.81078342,0.00041084,31]
[357662527,1744294233398,-738.81078342,0.00041084,31]
[357662529,1744294233408,-738.81078342,0.00041084,31]
[357662531,1744294233418,-738.81078342,0.00041084,31]
[357662533,1744294233429,-738.81078342,0.00041084,31]
[357662535,1744294233438,-738.81078342,0.00041084,31]
[357662537,1744294233449,-738.81078342,0.00041084,31]
[357662539,1744294233458,-738.81078342,0.00041084,31]
[357662541,1744294233469,-738.81078342,0.00041084,31]
[357662543,1744294233479,-738.81078342,0.00041084,31]
[357662545,1744294233489,-738.81078342,0.00041084,31]
[357662546,1744294233499,-738.81078342,0.00041084,31]
[357662548,1744294233509,-738.81078342,0.00041084,31]
[357662550,1744294233521,-738.81078342,0.00041084,31]
[357662553,1744294233532,-738.81078342,0.00041084,31]
[357662554,1744294233542,-738.81078342,0.00041084,31]
[357662556,1744294233553,-738.81078342,0.00041084,31]
[357662558,1744294233562,-738.81078342,0.00041084,31]
[357662560,1744294233572,-753.58699908,0.00041084,31]
[357662562,1744294233582,-753.58699908,0.00041084,31]
[357662564,1744294233592,-753.58699908,0.00041084,31]
[357662566,1744294233601,-753.58699908,0.00041084,31]
[357662568,1744294233612,-753.58699908,0.00041084,31]
[357662570,1744294233621,-753.58699908,0.00041084,31]
[357662572,1744294233631,-753.58699908,0.00041084,31]
[357662574,1744294233640,-753.58699908,0.00041084,31]
[357662576,1744294233650,-753.58699908,0.00041084,31]
[357662578,1744294233661,-753.58699908,0.00041084,31]
[357662579,1744294233670,-11846.44643297,0.00041085,3]
[357662699,1744294238338,-500.0,0.00041083,31]
[357662700,1744294238348,-500.0,0.00041083,7]
[357662701,1744294238359,-500.0,0.00041083,31]
[357662702,1744294238368,-500.0,0.00041083,7]
[357662703,1744294238377,-500.0,0.00041083,31]
[357662704,1744294238386,-500.0,0.00041083,7]
[357662705,1744294238396,-128.99499997,0.00041083,31]
[357662706,1744294238407,-215.06807272,0.00041083,31]
[357662707,1744294238416,-500.0,0.00041083,7]
[357662708,1744294238425,-500.0,0.00041083,7]
[357662709,1744294238434,-500.0,0.00041083,7]
[357662710,1744294238443,-500.0,0.00041083,7]
[357662711,1744294238452,-500.0,0.00041083,7]
[357662712,1744294238462,-500.0,0.00041083,7]
[357662713,1744294238471,-500.0,0.00041083,7]
[357662714,1744294238480,-500.0,0.00041083,7]
[357662715,1744294238491,-500.0,0.00041083,7]
[357662716,1744294238500,-500.0,0.00041083,7]
[357662717,1744294238510,-500.0,0.00041083,7]
[357662718,1744294238520,-500.0,0.00041083,7]
[357662719,1744294238529,-500.0,0.00041083,7]
[357662720,1744294238539,-1203.93359288,0.00041085,3]
[357662725,1744294240348,-1923.07119405,0.00041085,3]
[357662726,1744294240361,-4287.36,0.00041085,3]
[357662727,1744294240372,-797.6518777,0.00041085,3]
[357662728,1744294240384,-1946.32387463,0.00041085,3]
[357662729,1744294240879,-333.32806608,0.00041085,3]
[357662730,1744294240894,-29846.42000001,0.00041085,3]
[357662731,1744294240906,-259.68057779,0.00041085,3]
[357662740,1744294243992,162.47,0.00028,2]
[357662764,1744294245956,-300.8,0.00040395,5]
[357662765,1744294245966,-1371.94324606,0.00041085,3]
[357662771,1744294246228,-151.0,0.00040733,2]
[357662772,1744294246238,-485.81,0.00041085,3]
[357662773,1744294246422,-962.38327705,0.00041085,3]
[357662774,1744294246434,-2999.81316118,0.00041085,3]
[357662775,1744294246446,-807.7,0.00041085,3]
[357662776,1744294246462,-3302.49395348,0.00041085,3]
[357662795,1744294294121,500.0,0.00035,30]
[357662797,1744294336942,382.02304912,0.00036751,45]
[357662798,1744294336964,117.97695088,0.00036751,45]
[357662800,1744294386818,500.0,0.00035,30]
[357662802,1744294558178,500.0,0.00035,30]
[357662803,1744295227107,-493.39300651,0.00019,2]
[357662804,1744295231128,-171.47391735,0.00019,2]
[357662805,1744295236734,1861.16153852,0.00015,2]
[357662806,1744295243107,-1358.22630182,0.00019,2]
[357662807,1744295243130,-306.466146,0.000199,2]
[357662808,1744295243155,-250.0,0.00019998,2]
[357662809,1744295243177,-450.3647341,0.00019999,2]
[357662810,1744295243200,-500.0,0.00019999,2]
[357662811,1744295243225,-330.80552892,0.00019999,2]
[357662812,1744295266189,-169.19447108,0.00019999,2]
[357662813,1744295266212,-500.0,0.00019999,2]
[357662814,1744295266479,-237.94424648,0.00019999,2]
[357662815,1744295266515,-500.0,0.00019999,2]
[357662816,1744295266539,-500.0,0.00019999,2]
[357662817,1744295266563,-92.86128244,0.00019999,2]
[357662818,1744295267716,-407.13871756,0.00019999,2]
[357662819,1744295267741,-500.0,0.00019999,2]
[357662820,1744295267766,-500.0,0.00019999,2]
[357662821,1744295267792,-500.0,0.00019999,2]
[357662822,1744295267817,-92.86128244,0.00019999,2]
[357662823,1744295270240,-407.13871756,0.00019999,2]
[357662824,1744295270269,-1592.86128244,0.0002,2]
[357662825,1744295273494,-2000.0,0.0002,2]
[357662826,1744295275702,-2000.0,0.0002,2]
[357662827,1744295277532,-2000.0,0.0002,2]
[357662828,1744295284563,1832.07576682,0.00015,2]
[357662829,1744295284591,3693.23730534,0.00015,2]
[357662830,1744295284620,3693.23730534,0.00015,2]
[357662831,1744295284649,3693.23730534,0.00015,2]
[357662832,1744295284681,3693.23730534,0.00015,2]
[357662833,1744295284710,3693.23730534,0.00015,2]
[357662834,1744295284738,3693.23730534,0.00015,2]
[357662835,1744295284766,3693.23730534,0.00015,2]
[357662836,1744295284794,3693.23730534,0.00015,2]
[357662837,1744295284822,3693.23730534,0.00015,2]
[357662839,1744295341688,-500.0,0.00014999,2]
[357662840,1744295341730,-500.0,0.00014999,2]
[357662842,1744295341776,-500.0,0.00014999,2]
[357662844,1744295341818,-172.83725242,0.00014999,2]
[357662845,1744295345109,-89.9237543,0.00014999,2]
[357662846,1744295345134,-58513.1815057,0.00015,2]
[357662847,1744295349104,-10026.77780622,0.00015,2]
[357662848,1744295349126,-24948.14231378,0.000151,2]
[357662849,1744295356102,-26909.08724176,0.000151,2]
[357662850,1744295356122,-680.30620263,0.00018,2]
[357662851,1744295356144,-2272.11795561,0.000199,2]
[357662854,1744295368175,-1025.55952335,0.000199,2]
[357662855,1744295368196,-514.0,0.0001997,2]
[357662856,1744295368217,-17259.63408589,0.00019999,2]
[357662857,1744295368239,-106223.55156814,0.0002,2]
[357662858,1744295369116,-31464.67968,0.0002,2]
[357662859,1744295372442,-124118.77381933,0.0002,2]
[357662860,1744295372482,-10953.3945036,0.0002,2]
[357662861,1744295372521,-6281.9006532,0.0002,2]
[357662862,1744295372561,-11588.08637082,0.0002,4]
[357662863,1744295372597,-152.01250978,0.000205,2]
[357662864,1744295372632,-1030.10575766,0.00021,2]
[357662865,1744295372667,-263.45919088,0.000217,2]
[357662866,1744295372705,-247.19026135,0.00022,2]
[357662867,1744295372738,-500.0,0.00022,2]
[357662868,1744295372778,-3297.67747895,0.00022327,2]
[357662869,1744295372815,-500.0,0.000238,2]
[357662870,1744295372851,-12138.1672326,0.00024,2]
[357662871,1744295372887,-4709.27403017,0.00024,5]
[357662872,1744295372922,-11673.80172716,0.00024,2]
[357662873,1744295372959,-3297.67747895,0.00024754,2]
[357662874,1744295372993,-711.14176069,0.00025,7]
[357662875,1744295373030,-251.85,0.00026849,2]
[357662876,1744295373066,-156.34816118,0.00027,2]
[357662877,1744295373105,-3297.67747895,0.00027181,2]
[357662878,1744295373142,-32168.61035952,0.00029,2]
[357662896,1744295432606,-675.93652626,0.00029,2]
[357662902,1744295432922,-2149.35852899,0.00029,2]
[357662904,1744295433034,-1372.65758095,0.00029,2]
[357662910,1744295438551,-474.80296916,0.00029,2]
[357662911,1744295438719,-2107.69025308,0.00029,2]
[357662912,1744295438729,-300.0,0.00029607,2]
[357662913,1744295438739,-890.6309464,0.00029608,2]
[357662914,1744295438752,-2407.04653255,0.00029608,2]
[357662915,1744295438762,-161.56700733,0.00030873,5]
[357662916,1744295438772,-293.04981202,0.00031238,2]
[357662917,1744295438781,-195.86233408,0.00031369,2]
[357662918,1744295438791,-4794.47431402,0.0003137,2]
[357662938,1744295440694,-2883.08024698,0.0003137,2]
[357662939,1744295440978,-250.37544605,0.0003137,2]
[357662954,1744295443669,-1.33607479,0.0003137,2]
[357662955,1744295443681,-4961.55153661,0.0003137,2]
[357662956,1744295443736,-1227.36563201,0.0003137,2]
[357662957,1744295443747,-361.42932405,0.0003137,2]
[357662962,1744295446683,-812.54123744,0.0003137,2]
[357662963,1744295446861,-786.41969998,0.0003137,2]
[357662986,1744295588268,2689.620629,7.945e-05,2]
[357662993,1744295722744,537.39285831,0.00034371,33]
[357662994,1744295812498,159.0,0.00035,30]
[357662996,1744295893447,3154.4,0.00033,120]
[357663001,1744296099773,534.95088703,0.00034181,33]
[357663003,1744296124141,188.01072,0.0003333,52]
[357663022,1744296427141,-177.9413592,0.00019,2]
[357663023,1744296436267,-72.0586408,0.00019,2]
[357663024,1744296436290,-300.0,0.00021,2]
[357663025,1744296436312,-267.18,0.00022589,2]
[357663026,1744296436334,-215.4235259,0.000229,2]
[357663027,1744296436356,-150.0,0.00022959,2]
[357663028,1744296436377,-473.40529368,0.00022974,2]
[357663029,1744296436399,-350.0,0.00023,2]
[357663030,1744296436420,-400.0,0.00025,2]
[357663031,1744296436441,-215.4235259,0.00025868,2]
[357663032,1744296436461,-262.429949,0.00026715,2]
[357663033,1744296436484,-150.99,0.00026715,2]
[357663034,1744296436504,-468.99,0.00026849,2]
[357663035,1744296436526,-450.0,0.00027,2]
[357663036,1744296436547,-400.5100114,0.00027254,2]
[357663037,1744296450363,-252.14511615,0.00025397,2]
[357663038,1744296450385,-668.45795764,0.00027254,2]
[357663039,1744296475135,534.95088703,0.00034974,35]
[357663045,1744296545109,-690.67203096,0.00027254,2]
[357663046,1744296545130,-178.9493,0.00027412,2]
[357663047,1744296545152,-250.0,0.00027512,2]
[357663048,1744296545175,-215.4235259,0.0002767,2]
[357663049,1744296545197,-250.0,0.00027673,2]
[357663050,1744296545218,-721.85026664,0.0002777,2]
[357663051,1744296552077,-1558.175304,0.0002777,2]
[357663052,1744296555084,-699.4986376,0.0002777,2]
[357663053,1744296556100,-6609.19103934,0.0002777,2]
[357663054,1744296556121,-210.06029239,0.0002777,2]
[357663055,1744296556143,-575.05,0.00027771,2]
[357663056,1744296556164,-1873.45193614,0.00027952,2]
[357663057,1744296569094,-126.54806386,0.00027952,2]
[357663058,1744296569120,-150.0,0.00027981,2]
[357663059,1744296569142,-150.0,0.00027989,2]
[357663060,1744296569164,-170.68258554,0.0002819,2]
[357663061,1744296574598,-335.81214496,0.0002819,2]
[357663062,1744296574619,-1317.0,0.00028198,2]
[357663063,1744296574640,-11794.26925546,0.00028198,2]
[357663064,1744296574662,-500.0,0.00028198,2]
[357663065,1744296574684,-500.0,0.00028198,2]
[357663066,1744296574705,-500.0,0.00028198,2]
[357663067,1744296574725,-500.0,0.00028198,2]
[357663068,1744296574748,-500.0,0.00028198,2]
[357663069,1744296574770,-500.0,0.00028198,2]
[357663070,1744296574791,-622.22864944,0.00028198,2]
[357663071,1744296574813,-500.0,0.00028198,2]
[357663072,1744296574835,-500.0,0.00028198,2]
[357663073,1744296574857,-46.21230121,0.00028198,2]
[357663074,1744296576635,1500.0,0.00032877,120]
[357663091,1744296632040,-453.78769879,0.00028198,2]
[357663092,1744296632049,-500.0,0.00028198,2]
[357663093,1744296632060,-500.0,0.00028198,2]
[357663095,1744296632069,-500.0,0.00028198,2]
[357663097,1744296632079,-500.0,0.00028198,2]
[357663099,1744296632089,-500.0,0.00028198,2]
[357663101,1744296632098,-406.94126673,0.00028198,2]
[357663103,1744296632109,-500.0,0.00028198,2]
[357663105,1744296632122,-500.0,0.00028198,2]
[357663106,1744296632132,-500.0,0.00028198,2]
[357663108,1744296632142,-500.0,0.00028198,2]
[357663110,1744296632154,-500.0,0.00028198,2]
[357663112,1744296632163,-500.0,0.00028198,2]
[357663114,1744296632173,-500.0,0.00028198,2]
[357663116,1744296632185,-500.0,0.00028198,2]
[357663118,1744296632195,-500.0,0.00028198,2]
[357663120,1744296632205,-500.0,0.00028198,2]
[357663122,1744296632215,-500.0,0.00028198,2]
[357663124,1744296632225,-500.0,0.00028198,2]
[357663126,1744296632235,-500.0,0.00028198,2]
[357663128,1744296632245,-500.0,0.00028198,2]
[357663130,1744296632255,-500.0,0.00028198,2]
[357663132,1744296632264,-500.0,0.00028198,2]
[357663134,1744296632275,-500.0,0.00028198,2]
[357663136,1744296632285,-500.0,0.00028198,2]
[357663138,1744296632295,-500.0,0.00028198,2]
[357663140,1744296632305,-500.0,0.00028198,2]
[357663142,1744296632315,-500.0,0.00028198,2]
[357663144,1744296632324,-500.0,0.00028198,2]
[357663146,1744296632334,-500.0,0.00028198,2]
[357663148,1744296632343,-500.0,0.00028198,2]
[357663150,1744296632353,-500.0,0.00028198,2]
[357663152,1744296632363,-500.0,0.00028198,2]
[357663154,1744296632373,-500.0,0.00028198,2]
[357663156,1744296632383,-500.0,0.00028198,2]
[357663158,1744296632392,-500.0,0.00028198,2]
[357663160,1744296632402,-500.0,0.00028198,2]
[357663162,1744296632412,-500.0,0.00028198,2]
[357663164,1744296632421,-500.0,0.00028198,2]
[357663166,1744296632430,-500.0,0.00028198,2]
[357663168,1744296632439,-500.0,0.00028198,2]
[357663170,1744296632449,-500.0,0.00028198,2]
[357663172,1744296632458,-500.0,0.00028198,2]
[357663174,1744296632467,-500.0,0.00028198,2]
[357663176,1744296632477,-500.0,0.00028198,2]
[357663178,1744296632486,-500.0,0.00028198,2]
[357663180,1744296632495,-500.0,0.00028198,2]
[357663182,1744296632505,-500.0,0.00028198,2]
[357663183,1744296632514,-500.0,0.00028198,2]
[357663185,1744296632523,-500.0,0.00028198,2]
[357663187,1744296632532,-500.0,0.00028198,2]
[357663189,1744296632541,-500.0,0.00028198,2]
[357663191,1744296632551,-601.0083702,0.00028198,2]
[357663193,1744296632561,-500.0,0.00028198,2]
[357663195,1744296632571,-500.0,0.00028198,2]
[357663197,1744296632582,-500.0,0.00028198,2]
[357663199,1744296632591,-412.47140056,0.00028198,2]
[357663201,1744296632601,-500.0,0.00028198,2]
[357663203,1744296632610,-500.0,0.00028198,2]
[357663205,1744296632620,-500.0,0.00028198,2]
[357663207,1744296632635,-250.0,0.00028199,2]
[357663208,1744296632645,-31196.65895236,0.000282,2]
[357663210,1744296632657,-184.57,0.00028562,2]
[357663213,1744296632670,-200.0,0.00028722,2]
[357663214,1744296632681,-4308.29,0.00028781,2]
[357663216,1744296632691,-200.0,0.00028795,2]
[357663218,1744296632700,-2726.98,0.00028913,2]
[357663220,1744296632711,-151.38,0.00028914,3]
[357663222,1744296632721,-23900.0,0.00028937,2]
[357663224,1744296632731,-1299.29,0.00028986,2]
[357663226,1744296632740,-500.0,0.00029,2]
[357663228,1744296632749,-185.26,0.00029003,2]
[357663230,1744296632758,-422.4851665,0.00029167,2]
[357663232,1744296632768,-1633.09,0.00029197,2]
[357663234,1744296632779,-1087.43,0.00029374,2]
[357663236,1744296632788,-5752.5,0.00029455,2]
[357663237,1744296632798,-1759.64,0.00029518,2]
[357663239,1744296632808,-635.22,0.00029686,2]
[357663241,1744296632819,-16506.0,0.000299,2]
[357663243,1744296632830,-250.0,0.0002998,2]
[357663245,1744296632840,-5630.90729667,0.00030056,2]
[357663247,1744296632850,-200.0,0.00030271,2]
[357663249,1744296632859,-827.64,0.00030365,2]
[357663251,1744296632869,-200.0,0.00030369,7]
[357663253,1744296632884,-680.34,0.00030431,2]
[357663255,1744296632894,-152.83211499,0.00030525,5]
[357663257,1744296632904,-481.35223075,0.00030525,5]
[357663259,1744296632913,-1921.64,0.0003055,2]
[357663261,1744296632923,-2367.3,0.00030657,2]
[357663263,1744296632933,-16214.82477644,0.00030713,2]
[357663265,1744296632943,-8841.43846587,0.00030763,2]
[357663267,1744296632952,-5558.0,0.000308,3]
[357663269,1744296632962,-2252.79,0.00030863,2]
[357663271,1744296632972,-250.0,0.00030863,2]
[357663273,1744296632981,-550.0,0.00031,2]
[357663275,1744296632990,-250.0,0.00031018,2]
[357663277,1744296632999,-635.22,0.00031171,2]
[357663279,1744296633009,-495.0,0.00031205,2]
[357663280,1744296633019,-534.95088703,0.00031278,24]
[357663282,1744296633029,-33994.76137447,0.0003137,2]
[357663286,1744296633057,-238.04856193,0.0003137,2]
[357663288,1744296633067,-500.0,0.00031378,2]
[357663290,1744296633077,-7454.50383807,0.0003138,2]
[357663292,1744296633157,-3522.86737629,0.0003138,2]
[357663298,1744296638805,-544.00564138,0.00031369,2]
[357663299,1744296638814,-151.6745786,0.00031369,2]
[357663300,1744296638823,-32018.57740439,0.0003138,2]
[357663301,1744296638835,-3150.00000002,0.0003138,2]
[357663302,1744296638923,-7016.34586487,0.0003138,2]
[357663303,1744296639043,-111868.1848784,0.0003138,2]
[357663304,1744296639052,-171.86426737,0.00031412,2]
[357663305,1744296639062,-173.40240671,0.00031512,2]
[357663306,1744296639071,-168.48518084,0.00031533,5]
[357663307,1744296639081,-500.0,0.00031533,5]
[357663308,1744296639090,-2988.82750033,0.00031648,2]
[357663309,1744296639100,-11410.9366455,0.00031738,2]
[357663310,1744296639109,-8841.43846586,0.00031748,2]
[357663311,1744296639119,-1759.64,0.00031782,2]
[357663312,1744296639133,-155.91,0.00031795,2]
[357663313,1744296639142,-5558.0,0.000318,5]
[357663314,1744296639151,-155.91,0.00031807,2]
[357663315,1744296639160,-155.91,0.00031818,2]
[357663316,1744296639169,-155.91,0.00031829,2]
[357663317,1744296639178,-155.91,0.00031841,2]
[357663318,1744296639187,-155.91,0.00031852,2]
[357663319,1744296639197,-155.91,0.00031863,2]
[357663320,1744296639206,-155.91,0.00031875,2]
[357663321,1744296639215,-155.91,0.00031886,2]
[357663322,1744296639224,-155.91,0.00031897,2]
[357663323,1744296639233,-155.91,0.00031909,2]
[357663324,1744296639242,-155.91,0.0003192,2]
[357663325,1744296639252,-155.91,0.00031931,2]
[357663326,1744296639261,-155.91,0.00031943,2]
[357663327,1744296639270,-155.91,0.00031954,2]
[357663328,1744296639279,-11410.9366455,0.00032,2]
[357663329,1744296639288,-10781.85,0.0003201,2]
[357663330,1744296639297,-279.85356049,0.00032225,5]
[357663331,1744296639306,-153.06885563,0.00032225,5]
[357663332,1744296639315,-500.0,0.00032225,5]
[357663334,1744296639325,-290.48154422,0.00032225,5]
[357663335,1744296639333,-152.10540459,0.00032225,5]
[357663336,1744296639343,-500.0,0.00032225,5]
[357663337,1744296639352,-500.0,0.00032225,2]
[357663338,1744296639362,-203.16,0.00032297,2]
[357663339,1744296639371,-3602.68,0.00032527,2]
[357663340,1744296639380,-2988.8275003,0.00032534,2]
[357663341,1744296639389,-534.64330582,0.00032575,5]
[357663342,1744296639398,-251.85,0.00032646,2]
[357663343,1744296639407,-468.99,0.00032646,2]
[357663344,1744296639416,-635.22,0.00032655,2]
[357663345,1744296639425,-300.0,0.00032722,10]
[357663346,1744296639435,-666.0,0.00032722,10]
[357663347,1744296639443,-163.751289,0.00032722,7]
[357663348,1744296639452,-151.0,0.00032722,7]
[357663349,1744296639461,-172.483527,0.00032722,7]
[357663350,1744296639471,-230.296248,0.00032722,7]
[357663351,1744296639480,-172.483527,0.00032722,7]
[357663352,1744296639489,-154.030206,0.00032722,7]
[357663353,1744296639498,-151.0,0.00032722,7]
[357663355,1744296639507,-151.0,0.00032722,7]
[357663357,1744296639517,-151.0,0.00032722,7]
[357663359,1744296639526,-151.0,0.00032722,7]
[357663361,1744296639536,-252.068774,0.00032722,7]
[357663362,1744296639545,-11410.9366455,0.00032723,2]
[357663363,1744296639555,-8841.43846586,0.00032733,2]
[357663365,1744296639565,-151.0,0.00032733,7]
[357663366,1744296639574,-600.0,0.00033,2]
[357663368,1744296639583,-200.0,0.00033151,2]
[357663370,1744296639592,-2988.8275003,0.00033421,2]
[357663372,1744296639602,-8841.43846586,0.00033717,2]
[357663374,1744296639611,-1759.64,0.00034046,2]
[357663376,1744296639620,-635.22,0.00034139,2]
[357663378,1744296639629,-300.0,0.00034216,10]
[357663380,1744296639638,-296.61027835,0.00034216,10]
[357663382,1744296639647,-11410.9366455,0.00034217,2]
[357663384,1744296639657,-500.0,0.00034226,2]
[357663386,1744296639666,-153.899327,0.00034227,7]
[357663387,1744296639676,-151.0,0.00034227,7]
[357663389,1744296639685,-151.0,0.00034227,7]
[357663391,1744296639694,-151.0,0.00034227,7]
[357663393,1744296639704,-151.0,0.00034227,7]
[357663394,1744296639713,-151.0,0.00034227,7]
[357663395,1744296639723,-151.0,0.00034227,7]
[357663396,1744296639733,-151.902337,0.00034227,7]
[357663397,1744296639742,-151.0,0.00034227,7]
[357663399,1744296639752,-151.0,0.00034227,7]
[357663401,1744296639761,-205.17441,0.00034227,7]
[357663403,1744296639771,-151.0,0.00034227,7]
[357663405,1744296639782,-207.227848,0.00034227,7]
[357663407,1744296639791,-151.0,0.00034227,7]
[357663409,1744296639801,-207.227848,0.00034227,7]
[357663411,1744296639811,-278.423634,0.00034227,7]
[357663413,1744296639820,-151.0,0.00034227,7]
[357663415,1744296639829,-151.0,0.00034227,7]
[357663417,1744296639838,-151.0,0.00034227,7]
[357663419,1744296639847,-151.0,0.00034227,7]
[357663421,1744296639857,-151.0,0.00034227,7]
[357663423,1744296639867,-151.0,0.00034227,7]
[357663424,1744296639877,-282.820641,0.00034227,7]
[357663425,1744296639887,-282.820641,0.00034227,7]
[357663426,1744296639896,-941.440573,0.00034227,7]
[357663427,1744296639905,-941.440573,0.00034227,7]
[357663428,1744296639915,-151.0,0.00034227,7]
[357663429,1744296639924,-151.0,0.00034227,7]
[357663430,1744296639934,-230.886982,0.00034227,7]
[357663431,1744296639943,-230.886982,0.00034227,7]
[357663432,1744296639953,-311.43420062,0.00034236,10]
[357663433,1744296639962,-11410.9366455,0.00034237,2]
[357663434,1744296639972,-500.0,0.00034247,7]
[357663435,1744296639981,-500.0,0.00034247,7]
[357663436,1744296639991,-500.0,0.00034247,7]
[357663437,1744296640000,-500.0,0.00034247,7]
[357663438,1744296640010,-500.0,0.00034247,7]
[357663439,1744296640019,-500.0,0.00034247,7]
[357663440,1744296640028,-500.0,0.00034247,7]
[357663441,1744296640038,-500.0,0.00034247,7]
[357663442,1744296640048,-500.0,0.00034247,7]
[357663443,1744296640058,-500.0,0.00034247,7]
[357663444,1744296640068,-500.0,0.00034247,7]
[357663445,1744296640077,-500.0,0.00034247,7]
[357663446,1744296640087,-500.0,0.00034247,7]
[357663447,1744296640097,-500.0,0.00034247,7]
[357663448,1744296640107,-500.0,0.00034247,7]
[357663449,1744296640122,-500.0,0.00034247,7]
[357663450,1744296640133,-500.0,0.00034247,7]
[357663451,1744296640142,-500.0,0.00034247,7]
[357663454,1744296640377,-1000.0,0.00034302,2]
[357663455,1744296640392,-2988.8275003,0.00034307,2]
[357663456,1744296640403,-150.0,0.00034548,10]
[357663457,1744296640413,-151.0,0.00034702,7]
[357663458,1744296640423,-172.483527,0.00034702,7]
[357663459,1744296640432,-172.483527,0.00034702,7]
[357663460,1744296640442,-153.876903,0.00034702,7]
[357663461,1744296640452,-151.0,0.00034702,7]
[357663462,1744296640462,-151.0,0.00034702,7]
[357663463,1744296640472,-8841.43846586,0.00034702,2]
[357663464,1744296640482,-167.34,0.00034907,2]
[357663465,1744296640492,-11410.9366455,0.0003497,2]
[357663466,1744296640502,-22821.873291,0.0003498,2]
[357663467,1744296640512,-151.61,0.0003498,2]
[357663468,1744296640522,-166.379527,0.00034989,7]
[357663469,1744296640531,-168.766477,0.00034989,7]
[357663470,1744296640541,-151.0,0.00034989,7]
[357663471,1744296640551,-151.0,0.00034989,7]
[357663472,1744296640560,-151.0,0.00034989,7]
[357663473,1744296640570,-151.0,0.00034989,7]
[357663474,1744296640579,-151.0,0.00034989,7]
[357663475,1744296640589,-335.985905,0.00034989,7]
[357663476,1744296640598,-335.985905,0.00034989,7]
[357663477,1744296640608,-151.0,0.00034989,7]